bitfinex/quotes_BTCUSD_20240831
["timestamp","ask_amount","ask_price","bid_price","bid_amount"]
[1725121973634,0.50685,59189.0,59188.0,0.06077758]
[1725121975640,0.50685,59189.0,59188.0,0.12467758]
[1725121976731,0.53336108,59189.0,59188.0,0.12467758]
[1725121978087,0.53336108,59189.0,59188.0,0.06078445]
[1725121978312,0.87126108,59189.0,59188.0,0.01]
[1725121980304,0.50685,59189.0,59188.0,0.01]
[1725121980519,0.50685,59189.0,59188.0,0.06077842]
[1725121981715,0.16895,59189.0,59188.0,0.06077842]
[1725121983259,0.16895,59189.0,59188.0,0.12207842]
[1725121983722,0.19546112,59189.0,59188.0,0.12207842]
[1725121983943,0.53336112,59189.0,59188.0,0.12207842]
[1725121984394,0.19546112,59189.0,59188.0,0.12207842]
[1725121984612,0.53336112,59189.0,59188.0,0.12207842]
[1725121985712,0.19546112,59189.0,59188.0,0.12207842]
[1725121987314,0.19546112,59189.0,59188.0,0.76862756]
[1725121987315,0.02651112,59189.0,59188.0,0.76862756]
[1725121987533,0.1,59192.0,59189.0,0.0613]
[1725121987752,0.1,59192.0,59191.0,0.05075893]
[1725121987753,0.268942,59192.0,59191.0,0.05075893]
[1725121987968,0.268942,59192.0,59191.0,0.11205893]
[1725121988410,0.1,59192.0,59191.0,0.28100293]
[1725121988636,0.1,59192.0,59191.0,0.61889193]
[1725121989524,0.1,59192.0,59191.0,0.62189193]
[1725121990671,0.1,59192.0,59191.0,0.62289193]
[1725121990891,0.1,59192.0,59191.0,0.28500293]
[1725121991332,0.1,59192.0,59191.0,0.62289193]
[1725121993448,0.1,59192.0,59191.0,0.62286653]
[1725121998369,0.1,59192.0,59191.0,0.62288152]
[1725122000212,0.12650897,59192.0,59191.0,0.62288152]
[1725122000923,0.12650897,59192.0,59191.0,0.96077052]
[1725122001395,0.12650897,59192.0,59191.0,0.95677052]
[1725122001622,0.12650897,59192.0,59191.0,0.95877052]
[1725122001848,0.12650897,59192.0,59191.0,0.95677052]
[1725122002068,0.12650897,59192.0,59191.0,0.95777052]
[1725122002285,0.12650897,59192.0,59191.0,0.96477052]
[1725122002715,0.12650897,59192.0,59191.0,0.62688152]
[1725122003190,0.12650897,59192.0,59191.0,0.62687736]
[1725122003834,0.12650897,59192.0,59191.0,0.62587736]
[1725122004052,0.12650897,59192.0,59191.0,0.29298836]
[1725122004311,0.12650897,59192.0,59191.0,0.12404436]
[1725122004536,0.12650897,59192.0,59191.0,0.29298836]
[1725122004749,0.12650897,59192.0,59191.0,0.0733]
[1725122006280,0.1,59192.0,59191.0,0.0733]
[1725122008945,0.168939,59193.0,59191.0,0.0733]
[1725122008946,0.337873,59194.0,59191.0,0.0733]
[1725122009166,0.168941,59192.0,59191.0,0.0733]
[1725122010065,0.168941,59192.0,59191.0,0.0683]
[1725122010281,0.168941,59192.0,59191.0,0.0713]
[1725122010973,0.1954499,59192.0,59191.0,0.0683]
[1725122011213,0.1954499,59192.0,59191.0,0.0733]
[1725122012363,0.168941,59193.0,59191.0,0.0733]
[1725122012585,0.168941,59192.0,59191.0,0.0733]
[1725122013255,0.168941,59192.0,59191.0,0.0683]
[1725122013707,0.168941,59192.0,59191.0,0.0723]
[1725122014140,0.168941,59192.0,59191.0,0.0683]
[1725122014582,0.168941,59192.0,59191.0,0.0733]
[1725122014872,0.168941,59192.0,59191.0,0.012]
[1725122015132,0.506824,59192.0,59191.0,0.0128998]
[1725122015774,0.844707,59192.0,59191.0,0.0128998]
[1725122016869,0.844707,59192.0,59191.0,0.0737998]
[1725122017089,0.506824,59192.0,59191.0,0.0737998]
[1725122017785,0.506824,59192.0,59191.0,0.1497998]
[1725122018223,0.168941,59192.0,59191.0,0.1497998]
[1725122020059,0.19544901,59192.0,59191.0,0.1497998]
[1725122020520,0.00345766,59192.0,59191.0,0.1497998]
[1725122020755,0.168939,59193.0,59191.0,0.1497998]
[1725122021216,0.168939,59193.0,59191.0,0.0888998]
[1725122021434,0.168939,59193.0,59192.0,0.0618]
[1725122021652,0.168936,59194.0,59192.0,0.0618]
[1725122022575,0.169751,59196.0,59192.0,0.0618]
[1725122022795,0.168933,59195.0,59192.0,0.0618]
[1725122023014,0.168933,59195.0,59192.0,0.0668]
[1725122023234,0.169748,59196.0,59192.0,0.235741]
[1725122023455,0.169748,59196.0,59193.0,0.0618]
[1725122023707,0.000818,59196.0,59193.0,0.230738]
[1725122023894,0.000818,59196.0,59194.0,0.0618]
[1725122024147,0.02732641,59196.0,59194.0,0.0618]
[1725122025265,0.19625741,59196.0,59194.0,0.0618]
[1725122025487,0.19625741,59196.0,59194.0,0.0638]
[1725122025698,0.02732641,59196.0,59194.0,0.0638]
[1725122026607,0.02732641,59196.0,59194.0,0.0648]
[1725122026824,0.19625741,59196.0,59194.0,0.0648]
[1725122027039,0.169749,59196.0,59194.0,0.0648]
[1725122027731,0.000818,59196.0,59194.0,0.0648]
[1725122030171,0.02732627,59196.0,59194.0,0.0648]
[1725122030390,0.02732627,59196.0,59194.0,0.233734]
[1725122030618,0.02732627,59196.0,59194.0,0.0648]
[1725122031042,0.000818,59196.0,59194.0,0.0648]
[1725122034153,0.000818,59196.0,59194.0,0.11559371]
[1725122034381,0.02732577,59196.0,59194.0,0.11559371]
[1725122034602,0.02732577,59196.0,59194.0,0.0648]
[1725122037029,0.19625677,59196.0,59194.0,0.0648]
[1725122037489,0.02732577,59196.0,59194.0,0.0648]
[1725122041507,0.02732577,59196.0,59194.0,0.003]
[1725122041733,0.19625577,59196.0,59194.0,0.003]
[1725122044021,0.19625577,59196.0,59195.0,0.0618]
[1725122044950,0.02732577,59196.0,59195.0,0.0618]
[1725122045853,0.02732577,59196.0,59195.0,0.0648]
[1725122048141,0.02732577,59196.0,59195.0,0.233733]
[1725122049467,0.0131238,59196.0,59195.0,0.233733]
[1725122049968,0.1,59197.0,59195.0,0.233733]
[1725122050867,0.1,59197.0,59195.0,0.0648]
[1725122050868,0.000818,59196.0,59195.0,0.0648]
[1725122051969,0.09134453,59197.0,59195.0,0.0638]
[1725122052194,0.09134453,59197.0,59195.0,0.0618]
[1725122052634,0.09134453,59197.0,59195.0,0.0628]
[1725122053071,0.11785209,59197.0,59195.0,0.0638]
[1725122053517,0.11785209,59197.0,59195.0,0.0628]
[1725122053742,0.28677909,59197.0,59195.0,0.0628]
[1725122054238,0.26027153,59197.0,59195.0,0.0628]
[1725122060949,0.33865,59201.0,59196.0,0.11459404]
[1725122060950,0.000818,59201.0,59196.0,0.11459404]
[1725122061178,0.000818,59201.0,59199.0,0.16892]
[1725122061402,0.000818,59201.0,59200.0,0.0638]
[1725122062597,0.000818,59201.0,59200.0,0.232718]
[1725122063033,0.000818,59201.0,59200.0,0.234718]
[1725122063725,0.000818,59201.0,59200.0,0.238718]
[1725122064199,0.02732325,59201.0,59200.0,0.238718]
[1725122064680,0.02732325,59201.0,59200.0,0.0698]
[1725122068034,0.02732325,59201.0,59200.0,0.238718]
[1725122071541,0.177097,59204.0,59201.0,0.0638]
[1725122071542,0.168909,59204.0,59201.0,0.0638]
[1725122072939,0.169909,59204.0,59201.0,0.0638]
[1725122075045,0.19641359,59204.0,59201.0,0.0638]
[1725122075973,0.19723159,59204.0,59201.0,0.0638]
[1725122076455,0.50674,59203.0,59201.0,0.0638]
[1725122078960,0.50674,59203.0,59201.0,0.0648]
[1725122079427,0.675651,59203.0,59201.0,0.0648]
[1725122082231,0.50674,59203.0,59201.0,0.0648]
[1725122082481,0.67565,59203.0,59202.0,0.0619]
[1725122082749,0.38820317,59203.0,59202.0,0.0619]
[1725122085329,0.21929317,59203.0,59202.0,0.0629]
[1725122088566,0.22011117,59203.0,59202.0,0.0629]
[1725122090879,0.22011117,59203.0,59202.0,0.231813]
[1725122102504,0.22011117,59203.0,59202.0,0.0629]
[1725122104726,0.22011117,59203.0,59202.0,0.001]
[1725122104727,0.38902117,59203.0,59202.0,0.001]
[1725122106148,0.72684117,59203.0,59202.0,0.001]
[1725122112415,0.72684117,59203.0,59202.0,0.0657]
[1725122112861,0.72684117,59203.0,59202.0,0.0665998]
[1725122113788,0.38902117,59203.0,59202.0,0.0665998]
[1725122120917,0.72684117,59203.0,59202.0,0.0665998]
[1725122123792,1.40248117,59203.0,59202.0,0.0018998]
[1725122132348,1.50248117,59203.0,59202.0,0.0018998]
[1725122141716,1.52898813,59203.0,59202.0,0.0018998]
[1725122142847,1.58928813,59203.0,59202.0,0.0018998]
[1725122143259,1.56278117,59203.0,59202.0,0.0018998]
[1725122146606,1.58928797,59203.0,59202.0,0.0018998]
[1725122149683,1.56278117,59203.0,59202.0,0.0018998]
[1725122149893,1.17376,59203.0,59202.0,0.0018998]
[1725122150327,1.34267,59203.0,59202.0,0.0018998]
[1725122152777,1.34267,59203.0,59202.0,0.0645998]
[1725122155020,0.1,59203.0,59202.0,0.1430998]
[1725122155271,0.19541636,59203.0,59202.0,0.1420998]
[1725122155706,0.26891,59203.0,59202.0,0.1420998]
[1725122155925,0.29541568,59203.0,59202.0,0.1420998]
[1725122158334,0.63323568,59203.0,59202.0,0.1420998]
[1725122159446,0.63405368,59203.0,59202.0,0.1420998]
[1725122160343,0.97187368,59203.0,59202.0,0.1420998]
[1725122166940,0.63405368,59203.0,59202.0,0.1420998]
[1725122169019,0.29623368,59203.0,59202.0,0.1420998]
[1725122169215,0.12732368,59203.0,59202.0,0.1420998]
[1725122169483,0.02732368,59203.0,59202.0,0.1420998]
[1725122176673,0.02732368,59203.0,59202.0,0.3110128]
[1725122176890,0.02732368,59203.0,59202.0,0.6488388]
[1725122178903,0.02732368,59203.0,59202.0,0.9866648]
[1725122199425,0.02732368,59203.0,59202.0,1.037369]
[1725122207096,0.02732368,59203.0,59202.0,0.6488388]
[1725122207318,0.02732368,59203.0,59202.0,0.699543]
[1725122210957,0.337788,59209.0,59202.0,0.4799258]
[1725122211174,0.168897,59208.0,59204.0,0.168907]
[1725122213156,0.1,59207.0,59204.0,0.168907]
[1725122215140,0.12650369,59207.0,59204.0,0.168907]
[1725122216822,0.12950369,59207.0,59204.0,0.168907]
[1725122217236,0.29840269,59207.0,59204.0,0.168907]
[1725122217884,0.29840269,59207.0,59202.0,0.4172258]
[1725122218095,0.29840269,59207.0,59203.0,0.0616]
[1725122218530,0.29840269,59207.0,59203.0,0.230509]
[1725122218740,0.29540269,59207.0,59203.0,0.230509]
[1725122219379,0.29622069,59207.0,59203.0,0.230509]
[1725122220458,0.29922069,59207.0,59203.0,0.230509]
[1725122220900,0.29622069,59207.0,59203.0,0.230509]
[1725122221112,0.29622069,59207.0,59203.0,0.28126505]
[1725122221329,0.29922069,59207.0,59204.0,0.05075605]
[1725122223326,0.29622069,59207.0,59204.0,0.05075605]
[1725122223742,0.29922069,59207.0,59204.0,0.05075605]
[1725122224170,0.168902,59206.0,59204.0,0.05075605]
[1725122224611,0.1,59205.0,59204.0,0.05075605]
[1725122225233,0.1,59205.0,59204.0,0.05077142]
[1725122225446,0.1,59205.0,59204.0,0.05077173]
[1725122227410,0.102,59205.0,59204.0,0.05077173]
[1725122227634,0.102,59205.0,59203.0,0.30666713]
[1725122228342,0.002,59205.0,59203.0,0.23051]
[1725122228554,0.1,59206.0,59203.0,0.24506713]
[1725122228766,0.1,59206.0,59205.0,0.05077326]
[1725122228978,0.1,59206.0,59205.0,0.11307326]
[1725122229621,0.1,59206.0,59205.0,0.0623]
[1725122230055,0.1,59206.0,59205.0,0.0603]
[1725122230478,0.1,59206.0,59205.0,0.11107326]
[1725122230912,0.103,59206.0,59205.0,0.11107326]
[1725122232818,0.003,59206.0,59205.0,0.11107326]
[1725122235046,0.003,59206.0,59205.0,0.0603]
[1725122235257,0.003,59206.0,59205.0,0.11107586]
[1725122236338,0.003,59206.0,59205.0,0.0603]
[1725122236780,0.003,59206.0,59205.0,0.11107586]
[1725122237638,0.003,59206.0,59205.0,0.11105516]
[1725122238280,0.003,59206.0,59205.0,0.0603]
[1725122238522,0.003,59206.0,59205.0,0.11105216]
[1725122238762,0.003,59206.0,59205.0,1.46093698]
[1725122238992,0.003,59206.0,59205.0,1.82412206]
[1725122239422,0.003,59206.0,59205.0,1.69724165]
[1725122239643,0.000818,59207.0,59206.0,1.32711]
[1725122239889,0.000818,59207.0,59206.0,1.8037079]
[1725122240106,0.000818,59207.0,59206.0,1.70232065]
[1725122240327,0.000818,59207.0,59206.0,1.80368491]
[1725122241217,0.000818,59207.0,59206.0,1.81068491]
[1725122241421,0.000818,59207.0,59206.0,1.71832065]
[1725122245359,0.000818,59207.0,59206.0,1.79428694]
[1725122247488,0.000818,59207.0,59206.0,1.41907629]
[1725122248131,0.000818,59207.0,59206.0,1.79425884]
[1725122248351,0.000818,59207.0,59206.0,1.41907629]
[1725122248569,0.000818,59207.0,59206.0,1.79425784]
[1725122248786,0.000818,59207.0,59206.0,1.71829155]
[1725122249207,0.000818,59207.0,59206.0,1.81965581]
[1725122249420,0.000818,59207.0,59206.0,1.71829155]
[1725122250136,0.000818,59207.0,59206.0,1.81965581]
[1725122253276,0.000818,59207.0,59206.0,1.71829155]
[1725122253481,0.000818,59207.0,59206.0,1.81965581]
[1725122255486,0.000818,59207.0,59206.0,1.71829155]
[1725122255913,0.000818,59207.0,59206.0,1.79419282]
[1725122256315,0.000818,59207.0,59206.0,1.7941936]
[1725122256515,0.000818,59207.0,59206.0,1.71829155]
[1725122257579,0.000818,59207.0,59206.0,1.41900327]
[1725122257810,0.000818,59207.0,59206.0,1.79416835]
[1725122258255,0.000818,59207.0,59206.0,1.71827508]
[1725122258473,0.000818,59207.0,59206.0,1.79417145]
[1725122258688,0.000818,59207.0,59206.0,1.71827496]
[1725122264179,0.000818,59207.0,59206.0,1.71826085]
[1725122265494,0.000818,59207.0,59206.0,1.71126085]
[1725122265734,0.000818,59207.0,59206.0,1.71826085]
[1725122266368,0.000818,59207.0,59206.0,1.71126085]
[1725122266842,0.000818,59207.0,59206.0,1.70226085]
[1725122267061,0.000818,59207.0,59206.0,1.71126085]
[1725122267298,0.000818,59207.0,59206.0,1.70226085]
[1725122267754,0.000818,59207.0,59206.0,1.72226085]
[1725122268442,0.000818,59207.0,59206.0,1.71326085]
[1725122268666,0.000818,59207.0,59206.0,1.72126085]
[1725122268897,0.000818,59207.0,59206.0,1.72126074]
[1725122269376,0.15335985,59220.0,59216.0,0.168872]
[1725122271396,0.1,59219.0,59216.0,0.168872]
[1725122271877,0.1,59219.0,59217.0,0.062]
[1725122272532,0.1,59219.0,59217.0,0.16887]
[1725122272738,0.102,59219.0,59214.0,0.399754]
[1725122273007,0.102,59219.0,59216.0,0.168871]
[1725122273437,0.002,59219.0,59216.0,0.168871]
[1725122274051,0.002,59219.0,59217.0,0.16887]
[1725122274916,0.1415,59221.0,59217.0,0.16887]
[1725122275134,0.02749788,59219.0,59218.0,0.168867]
[1725122275592,0.02649788,59219.0,59218.0,0.168867]
[1725122276690,0.02649788,59219.0,59217.0,0.16887]
[1725122277582,0.02649788,59219.0,59217.0,0.16987]
[1725122281665,0.02731588,59219.0,59217.0,0.16987]
[1725122283611,0.02731588,59219.0,59218.0,0.168867]
[1725122285307,0.02731588,59219.0,59218.0,0.169867]
[1725122288104,0.64294707,59219.0,59218.0,0.001]
[1725122288332,1.07133788,59219.0,59218.0,0.001]
[1725122288561,1.40906688,59219.0,59218.0,0.001]
[1725122289244,1.07133788,59219.0,59218.0,0.001]
[1725122289460,1.03082684,59219.0,59218.0,0.001]
[1725122289689,1.01313788,59219.0,59218.0,0.001]
[1725122294536,0.98664,59219.0,59218.0,0.001]
[1725122296127,1.01313974,59219.0,59218.0,0.001]
[1725122297281,1.54415521,59219.0,59218.0,0.001]
[1725122297491,1.90488421,59219.0,59218.0,0.001]
[1725122298608,1.90488421,59219.0,59217.0,0.0008998]
[1725122298609,1.281772,59218.0,59217.0,0.0008998]
[1725122298854,1.381772,59218.0,59217.0,0.0008998]
[1725122299315,1.888382,59218.0,59217.0,0.0008998]
[1725122301571,2.05693364,59218.0,59217.0,0.0008998]
[1725122301798,2.39466864,59218.0,59217.0,0.0008998]
[1725122302055,2.41766864,59218.0,59217.0,0.0008998]
[1725122302285,2.41866864,59218.0,59217.0,0.0008998]
[1725122302754,2.42066864,59218.0,59217.0,0.0008998]
[1725122305304,2.4383576,59218.0,59217.0,0.0008998]
[1725122305533,2.4363576,59218.0,59217.0,0.0008998]
[1725122308396,2.4383576,59218.0,59217.0,0.0008998]
[1725122308860,2.4433576,59218.0,59217.0,0.0008998]
[1725122310440,2.2744906,59218.0,59217.0,0.0008998]
[1725122310939,2.4433576,59218.0,59217.0,0.0008998]
[1725122312915,7.4933576,59218.0,59217.0,0.0008998]
[1725122314260,5.58080596,59218.0,59217.0,0.0008998]
[1725122314476,3.72254096,59218.0,59217.0,0.0008998]
[1725122314688,3.72154096,59218.0,59217.0,0.0008998]
[1725122315127,3.72254096,59218.0,59217.0,0.0018998]
[1725122315340,3.72254096,59218.0,59217.0,0.0028998]
[1725122315594,3.38480596,59218.0,59217.0,0.0028998]
[1725122316251,3.72254096,59218.0,59217.0,0.0028998]
[1725122316683,3.38480596,59218.0,59217.0,0.0028998]
[1725122317831,2.50380596,59218.0,59217.0,0.0028998]
[1725122318307,2.7142762,59218.0,59217.0,0.0028998]
[1725122319020,3.0520112,59218.0,59217.0,0.0028998]
[1725122319259,3.0100926,59218.0,59217.0,0.0028998]
[1725122321128,7.8310926,59218.0,59217.0,0.0028998]
[1725122324896,7.4933576,59218.0,59217.0,0.0028998]
[1725122325135,7.4933576,59218.0,59217.0,0.0029778]
[1725122325136,7.5033576,59218.0,59217.0,0.0029778]
[1725122325385,7.8410926,59218.0,59217.0,0.0029778]
[1725122330161,8.1788276,59218.0,59217.0,8e-07]
[1725122330410,2.7910926,59218.0,59217.0,8e-07]
[1725122330618,2.7910926,59218.0,59217.0,6e-07]
[1725122330837,2.7919106,59218.0,59217.0,6e-07]
[1725122332258,3.1296456,59218.0,59217.0,6e-07]
[1725122332489,2.7919106,59218.0,59217.0,6e-07]
[1725122334862,3.1296456,59218.0,59217.0,6e-07]
[1725122347706,1.864856,59208.0,59207.0,0.0653]
[1725122347923,7.71301764,59208.0,59207.0,0.0653]
[1725122348137,1.864916,59206.0,59205.0,0.1449998]
[1725122348368,7.544526,59206.0,59205.0,0.1449998]
[1725122349891,7.545526,59206.0,59205.0,0.1509998]
[1725122350141,7.71307764,59206.0,59205.0,0.1449998]
[1725122350563,7.71307764,59206.0,59205.0,0.1489998]
[1725122350782,7.71307764,59206.0,59205.0,0.0707998]
[1725122351231,7.71307764,59206.0,59205.0,0.0048998]
[1725122351467,8.06088064,59206.0,59205.0,0.0048998]
[1725122351677,8.06088064,59206.0,59203.0,0.0008998]
[1725122351678,1.537167,59204.0,59203.0,0.0008998]
[1725122351900,7.554592,59204.0,59203.0,0.0008998]
[1725122353043,7.554592,59204.0,59203.0,0.0028998]
[1725122354182,7.554592,59204.0,59203.0,8e-07]
[1725122354398,2.502592,59204.0,59203.0,8e-07]
[1725122354606,2.67314364,59204.0,59203.0,0.0010008]
[1725122355286,7.72314364,59204.0,59203.0,0.0010008]
[1725122355934,7.72314364,59204.0,59203.0,0.001]
[1725122356141,7.73614364,59204.0,59203.0,0.002]
[1725122356350,7.73614364,59204.0,59203.0,0.0028998]
[1725122356540,7.73614364,59204.0,59203.0,0.0018998]
[1725122357004,7.75014364,59204.0,59203.0,0.0028998]
[1725122357220,7.75014364,59204.0,59203.0,0.0635998]
[1725122361793,7.81794864,59204.0,59203.0,0.0635998]
[1725122367968,7.81876764,59204.0,59203.0,0.0635998]
[1725122368840,7.80876764,59204.0,59203.0,0.0635998]
[1725122369048,7.81876764,59204.0,59203.0,0.0635998]
[1725122369973,7.476309,59204.0,59203.0,0.0635998]
[1725122370185,7.645216,59204.0,59203.0,0.0635998]
[1725122394497,7.645216,59204.0,59203.0,0.0028998]
[1725122394760,7.645216,59204.0,59203.0,8e-07]
[1725122394761,7.983031,59204.0,59203.0,8e-07]
[1725122395001,7.983031,59204.0,59202.0,6e-07]
[1725122395002,6.92001,59203.0,59202.0,6e-07]
[1725122395241,2.66817164,59203.0,59202.0,6e-07]
[1725122396534,2.69417164,59203.0,59202.0,6e-07]
[1725122396749,1.532244,59201.0,59200.0,8e-07]
[1725122396973,2.33040564,59201.0,59200.0,8e-07]
[1725122397422,3.0237586,59201.0,59200.0,8e-07]
[1725122397640,3.05027098,59201.0,59200.0,8e-07]
[1725122399581,3.06427098,59201.0,59200.0,8e-07]
[1725122399795,3.07827098,59201.0,59200.0,8e-07]
[1725122401634,3.07827098,59201.0,59200.0,0.0305168]
[1725122402876,8.12827098,59201.0,59200.0,0.0305168]
[1725122404512,8.12827098,59201.0,59200.0,0.0314177]
[1725122406424,8.12827098,59201.0,59200.0,0.0009009]
[1725122406636,8.17017969,59201.0,59200.0,0.0009009]
[1725122407560,8.12827098,59201.0,59200.0,0.0009009]
[1725122410077,8.12827098,59201.0,59200.0,0.0652009]
[1725122410755,8.12827098,59201.0,59200.0,0.1422009]
[1725122416379,7.78962234,59201.0,59200.0,0.1422009]
[1725122417555,7.95853834,59201.0,59200.0,0.1422009]
[1725122432246,2.90853834,59201.0,59200.0,0.1422009]
[1725122432670,7.95853834,59201.0,59200.0,0.1422009]
[1725122433980,8.02634534,59201.0,59200.0,0.1422009]
[1725122438727,8.19489698,59201.0,59200.0,0.1422009]
[1725122440394,4.57068134,59201.0,59200.0,0.1422009]
[1725122441300,4.55668134,59201.0,59200.0,0.1422009]
[1725122441968,4.57068134,59201.0,59200.0,0.1422009]
[1725122444895,2.30068134,59201.0,59200.0,0.1422009]
[1725122445347,7.35068134,59201.0,59200.0,0.1422009]
[1725122449708,7.35068134,59201.0,59200.0,0.1417009]
[1725122450193,6.41468134,59201.0,59200.0,0.1417009]
[1725122451079,6.33868134,59201.0,59200.0,0.1417009]
[1725122451510,3.65068134,59201.0,59200.0,0.1417009]
[1725122452595,3.59968134,59201.0,59200.0,0.1417009]
[1725122452810,3.59468134,59201.0,59200.0,0.1417009]
[1725122454589,2.29068134,59201.0,59200.0,0.1417009]
[1725122454808,2.48468134,59201.0,59200.0,0.1417009]
[1725122455476,2.29068134,59201.0,59200.0,0.1417009]
[1725122455689,2.52068134,59201.0,59200.0,0.1417009]
[1725122460494,2.29068134,59201.0,59200.0,0.1417009]
[1725122460685,2.39068134,59201.0,59200.0,0.1417009]
[1725122461587,2.55923298,59201.0,59200.0,0.1417009]
[1725122462891,2.55923298,59201.0,59200.0,0.0004009]
[1725122463325,2.89706498,59201.0,59200.0,0.0004009]
[1725122466775,7.84706498,59201.0,59200.0,0.0004009]
[1725122477267,2.79706498,59201.0,59200.0,0.0004009]
[1725122477941,7.84706498,59201.0,59200.0,0.0004009]
[1725122480901,7.67851334,59201.0,59200.0,0.0004009]
[1725122485330,7.67851334,59201.0,59200.0,9e-07]
[1725122485537,2.62851334,59201.0,59200.0,9e-07]
[1725122486410,3.04084534,59201.0,59200.0,9e-07]
[1725122487934,2.70301334,59201.0,59200.0,9e-07]
[1725122488384,2.87156498,59201.0,59200.0,9e-07]
[1725122488616,2.63851334,59201.0,59200.0,0.0622009]
[1725122488830,2.30068134,59201.0,59200.0,0.0622009]
[1725122490163,5.53468134,59201.0,59200.0,0.0622009]
[1725122490587,5.36768134,59201.0,59200.0,0.0622009]
[1725122491092,5.24068134,59201.0,59200.0,0.0622009]
[1725122499647,7.35068134,59201.0,59200.0,0.0622009]
[1725122507733,7.33968134,59201.0,59200.0,0.0622009]
[1725122507984,7.32368134,59201.0,59200.0,0.0622009]
[1725122508453,7.27268134,59201.0,59200.0,0.0622009]
[1725122509388,2.83368134,59201.0,59200.0,0.0622009]
[1725122510299,2.30068134,59201.0,59200.0,0.0622009]
[1725122510521,3.23668134,59201.0,59200.0,0.0622009]
[1725122511849,2.88368134,59201.0,59200.0,0.0622009]
[1725122512965,2.72568134,59201.0,59200.0,0.0622009]
[1725122517564,2.72568134,59201.0,59200.0,0.1449009]
[1725122517775,2.24084934,59201.0,59200.0,0.1449009]
[1725122518664,2.21284934,59201.0,59200.0,0.1449009]
[1725122519075,2.22684934,59201.0,59200.0,0.1449009]
[1725122520368,2.23884934,59201.0,59200.0,0.1449009]
[1725122520615,2.22484934,59201.0,59200.0,0.1449009]
[1725122520858,2.23784934,59201.0,59200.0,0.1449009]
[1725122521505,2.50084934,59201.0,59200.0,0.1449009]
[1725122525184,2.47084934,59201.0,59200.0,0.1449009]
[1725122528337,2.80868134,59201.0,59200.0,0.1449009]
[1725122528754,2.80868134,59201.0,59200.0,0.0827009]
[1725122532302,7.33768134,59201.0,59200.0,0.0827009]
[1725122534653,7.33768134,59201.0,59200.0,9e-07]
[1725122534882,2.28768134,59201.0,59200.0,9e-07]
[1725122547286,2.28768134,59201.0,59200.0,0.0625009]
[1725122547947,4.32368134,59201.0,59200.0,0.0625009]
[1725122548159,4.27368134,59201.0,59200.0,0.0625009]
[1725122548602,4.26168134,59201.0,59200.0,0.0625009]
[1725122549292,4.22968134,59201.0,59200.0,0.0625009]
[1725122550402,4.21668134,59201.0,59200.0,0.0625009]
[1725122551453,4.18268134,59201.0,59200.0,0.0625009]
[1725122554087,2.28768134,59201.0,59200.0,0.0625009]
[1725122554297,4.18468134,59201.0,59200.0,0.0625009]
[1725122554503,4.15568134,59201.0,59200.0,0.0625009]
[1725122565010,4.45268134,59201.0,59200.0,0.0625009]
[1725122566866,4.39568134,59201.0,59200.0,0.0625009]
[1725122567713,4.26668134,59201.0,59200.0,0.0625009]
[1725122567920,4.22968134,59201.0,59200.0,0.0625009]
[1725122569809,4.04568134,59201.0,59200.0,0.0625009]
[1725122569985,3.93568134,59201.0,59200.0,0.0625009]
[1725122573973,3.93568134,59201.0,59200.0,0.1419009]
[1725122576174,2.28768134,59201.0,59200.0,0.1419009]
[1725122576394,4.09168134,59201.0,59200.0,0.1419009]
[1725122582590,4.05968134,59201.0,59200.0,0.1419009]
[1725122584362,4.02568134,59201.0,59200.0,0.1419009]
[1725122584776,3.99268134,59201.0,59200.0,0.1419009]
[1725122586962,4.81768134,59201.0,59200.0,0.1419009]
[1725122587409,4.80568134,59201.0,59200.0,0.1419009]
[1725122587621,4.79268134,59201.0,59200.0,0.1419009]
[1725122587829,4.68968134,59201.0,59200.0,0.1419009]
[1725122588449,4.61868134,59201.0,59200.0,0.1419009]
[1725122588695,4.58868134,59201.0,59200.0,0.1419009]
[1725122589540,3.96668134,59201.0,59200.0,0.1419009]
[1725122589754,3.83868134,59201.0,59200.0,0.1419009]
[1725122598160,3.79168134,59201.0,59200.0,0.1419009]
[1725122599036,3.77068134,59201.0,59200.0,0.1419009]
[1725122599251,3.30484934,59201.0,59200.0,0.1419009]
[1725122599477,1.94984934,59201.0,59200.0,0.1419009]
[1725122600146,1.77516585,59201.0,59200.0,0.1419009]
[1725122600790,1.74865347,59201.0,59200.0,0.1419009]
[1725122603841,2.08648547,59201.0,59200.0,0.1419009]
[1725122604055,2.11299444,59201.0,59200.0,0.1419009]
[1725122605348,2.08648547,59201.0,59200.0,0.1419009]
[1725122607147,2.08648547,59201.0,59200.0,0.0794009]
[1725122609169,2.08648547,59201.0,59200.0,9e-07]
[1725122609413,2.13410989,59201.0,59200.0,9e-07]
[1725122614711,2.16061895,59201.0,59200.0,9e-07]
[1725122621437,2.13599453,59201.0,59200.0,9e-07]
[1725122628806,2.47382653,59201.0,59200.0,9e-07]
[1725122630347,2.59632653,59201.0,59200.0,9e-07]
[1725122633918,2.58332653,59201.0,59200.0,9e-07]
[1725122634348,2.58532653,59201.0,59200.0,9e-07]
[1725122634578,2.6893157,59201.0,59200.0,9e-07]
[1725122635071,2.7033157,59201.0,59200.0,9e-07]
[1725122637299,2.6451157,59201.0,59200.0,9e-07]
[1725122642059,2.54112653,59201.0,59200.0,9e-07]
[1725122646854,2.47682653,59201.0,59200.0,9e-07]
[1725122658602,2.54092653,59201.0,59200.0,9e-07]
[1725122663122,2.88875853,59201.0,59200.0,9e-07]
[1725122664202,2.26949,59196.0,59195.0,8e-07]
[1725122664398,2.64741651,59196.0,59195.0,8e-07]
[1725122664605,2.74741651,59196.0,59195.0,8e-07]
[1725122665449,2.196239,59192.0,59191.0,4e-07]
[1725122665680,2.91611715,59192.0,59191.0,4e-07]
[1725122666118,2.96032103,59192.0,59191.0,4e-07]
[1725122666570,2.97232103,59192.0,59191.0,4e-07]
[1725122667907,2.98532103,59192.0,59191.0,4e-07]
[1725122670932,3.00672684,59192.0,59191.0,4e-07]
[1725122676148,3.01350884,59192.0,59191.0,4e-07]
[1725122677822,3.01432684,59192.0,59191.0,4e-07]
[1725122681682,0.01,59190.0,59187.0,6e-07]
[1725122681924,0.566959,59188.0,59187.0,6e-07]
[1725122682156,1.72069751,59188.0,59187.0,6e-07]
[1725122682401,2.33640951,59188.0,59187.0,6e-07]
[1725122682626,2.67431551,59188.0,59187.0,0.0452096]
[1725122683310,2.77713808,59188.0,59187.0,0.0452096]